Cogmind - Beta 16 @@@ ROGUE MODE // 2025.12.23 @ 15:58:25 Player: EuleBlut Result: Destroyed by G-34 Mercenary with Small Laser Performance ------------- Evolutions (1) 500 Regions Visited (2) 400 Robots Destroyed (34) 170 Value Destroyed (714) 714 Prototype IDs (0) 0 Alien Tech Used (0) 0 Bonus (0) 0 TOTAL SCORE: 1784 Bonus ------- None Cogmind --------- Core Integrity 0/400 Matter 207/300 Energy 132/160 System Corruption 0% Temperature Hot (273) Movement Rolling (145) Ox3 Location -9/Materials Parts ------- > --- POWER (1) -------- Light Nuclear Core > --- PROPULSION (2) --- Compact Wheel > --- UTILITY (4) ------ High-capacity Storage Unit > --- WEAPON (2) ------- Heavy Particle Cannon Improved Light Cannon > --- INVENTORY (20) --- Large Storage Unit Large Storage Unit EM Pulse Gun EM Pulse Gun Beam Cannon Heavy Particle Cannon Heavy Particle Cannon Heavy Particle Cannon Improved Light Cannon Datajack Peak State ------------ > --- POWER ------------ Ion Engine > --- PROPULSION ------- Compact Wheel Compact Wheel > --- UTILITY ---------- High-capacity Storage Unit Weapon Shielding > --- WEAPON ----------- Light Assault Rifle Improved Light Cannon > --- INVENTORY -------- Ion Engine Light Ion Engine Light Ion Engine Light Nuclear Core Light Treads Light Treads Wheel Large Storage Unit Large Storage Unit EM Pulse Gun EM Pulse Gun EM Pulse Gun Beam Cannon Heavy Particle Cannon Heavy Particle Cannon Heavy Particle Cannon Improved Light Cannon Improved Light Cannon Improved Light Cannon Datajack [Rating: 11] Favorites ----------- Power Ion Engine Engine Ion Engine Power Core Light Nuclear Core Propulsion Compact Wheel Wheel Compact Wheel Utility High-capacity Storage Unit Device Heat Sink Storage High-capacity Storage Unit Protection Weapon Shielding Weapon Improved Light Cannon Energy Gun Small Laser Energy Cannon Heavy Particle Cannon Ballistic Gun Assault Rifle Ballistic Cannon Improved Light Cannon Build | -11 -10 -9 ------- Run | Yrd Mat Mat Slots Evolved 2 | . . 2 Power . | . . . Propulsion . | . . . Utility 2 | . . 2 Weapon . | . . . Parts Attached 25 | 6 8 11 Power 6 | 1 1 4 Engine 5 | 1 1 3 Core 1 | . . 1 Reactor . | . . . Propulsion 6 | 2 2 2 Treads . | . . . Leg . | . . . Wheel 6 | 2 2 2 Hover . | . . . Flight . | . . . Utility 5 | 1 3 1 Device 1 | . . 1 Storage 3 | 1 2 . Processor . | . . . Hackware . | . . . Protection 1 | . 1 . Artifact . | . . . Weapon 8 | 2 2 4 Energy Gun 2 | 1 . 1 Energy Cannon 1 | . . 1 Ballistic Gun 2 | 1 1 . Ballistic Cannon 3 | . 1 2 Launcher . | . . . Special Weapon . | . . . Impact Weapon . | . . . Slashing Weapon . | . . . Piercing Weapon . | . . . Special Melee Weapon . | . . . Unidentified Prototypes . | . . . Parts Lost 18 | . 5 13 Power 5 | . 1 4 Propulsion 5 | . 2 3 Utility 2 | . . 2 Weapon 6 | . 2 4 Highest Loss Streak 7 | . 3 7 To Critical Strikes . | . . . Average Backups 11 | 3 11 15 Power 2 | 1 2 2 Propulsion 1 | 1 2 . Utility 1 | . 1 2 Weapon 5 | 1 4 9 Tool/Special . | . . . Unused Backups 13 | . . 13 Power . | . . . Propulsion 2 | . . 2 Utility 1 | . . 1 Weapon 9 | . . 9 Tool/Special 1 | . . 1 Average Slot Usage (%) 82 | . 87 63 Engine 12 | . 13 9 Wheel 24 | . 27 14 Storage 13 | . 14 11 Protection 3 | . 3 4 Energy Gun 6 | . 8 . Ballistic Gun 12 | . 14 7 Ballistic Cannon 6 | . 5 10 Peak Build Rating 11 | 6 10 11 Average Rating 7 | 3 7 9 On Entrance 5 | . 6 10 Avg Prop Armor Cover (%) . | . . . Naked Turns . | . . . Heaviest Build 55 | 11 51 55 Greatest Support 32 | 20 32 32 Greatest Overweight (x) 18 | . 2 18 Average Overweight (x) . | . . 1 Largest Inventory Capacity 20 | 8 20 20 Average Capacity 17 | 6 17 20 Most Carried 20 | 7 19 20 Average Carried 11 | 3 11 15 Final Capacity 20 | 8 20 20 Final Carried 19 | 4 19 10 Class Distribution -------------------- 100% | Mutant Dominant Class ---------------- Mutant | -10/Materials Mutant | -9/Materials Resources | -11 -10 -9 ----------- Run | Yrd Mat Mat Matter Collected 629 | 221 258 150 Remotely . | . . . Salvage Created 1097 | . 629 468 Parts 71 | . 35 36 Haulers Intercepted . | . . . Recyclers Shooed 5 | . 4 1 Parts Field Recycled . | . . . Retrieved Matter . | . . . Parts Self-Destructed . | . . . Prevented . | . . . Parts Restored . | . . . Kills | -11 -10 -9 ------- Run | Yrd Mat Mat Combat Hostiles Destroyed 24 | . 13 11 Guns 12 | . 10 2 Cannons 12 | . 3 9 Classes Destroyed 7 | . 4 3 Builder 2 | . . 2 Recycler 5 | . 3 2 Watcher 3 | . 2 1 Swarmer 10 | . 6 4 Grunt 12 | . 7 5 Duelist 1 | . . 1 Sentry 1 | . . 1 Best Kill Streak 6 | . 4 6 Combat Bots Only 5 | . 3 5 Max Kills in Single Turn 2 | . 1 2 Gunslinging . | . . . Exploded . | . . . Melee . | . . . Uniques/NPCs Destroyed . | . . . Combat | -11 -10 -9 -------- Run | Yrd Mat Mat Hostile Shots Fired 230 | . 66 164 Missed 67 | . 22 45 Hits 163 | . 44 119 Melee 8 | . . 8 Projectile 155 | . 44 111 Critical Strikes 1 | . . 1 Damage Taken 1932 | . 534 1398 Core 547 | . 139 408 Absorbed by Shields . | . . . Redirected to Shielding 51 | . 4 47 Core Remaining (%) 72 | 100 44 . Volleys Fired 94 | . 47 47 Largest 2 | . 2 2 Hottest 108 | . 60 108 Shots Fired 180 | . 94 86 Gun 117 | . 85 32 Cannon 63 | . 9 54 Launcher . | . . . Special . | . . . Kinetic 125 | . 56 69 Thermal 49 | . 38 11 Explosive . | . . . Electromagnetic 6 | . . 6 Robot Hit Streak 8 | . 8 6 Robot Miss Streak 5 | . 4 5 Penetration Max . | . . . Secondary Targets 2 | . 2 . Max Gunslinging Chain 1 | . 1 . Shots Hit Robots 102 | . 54 48 Core Hits 50 | . 27 23 Critical Kills . | . . . Critical Parts Destroyed 1 | . 1 . Critical Strikes 1 | . 1 . Destroy 1 | . 1 . Melee Attacks . | . . . Impact . | . . . Slashing . | . . . Piercing . | . . . Sneak Attacks . | . . . Combat Hostiles . | . . . Follow-up Attacks . | . . . Damage Inflicted 1691 | . 717 974 Guns 745 | . 574 171 Cannons 946 | . 143 803 Explosions . | . . . Melee . | . . . Ramming . | . . . Kinetic 1186 | . 462 724 Thermal 455 | . 255 200 Explosive . | . . . Electromagnetic 50 | . . 50 Impact . | . . . Slashing . | . . . Piercing . | . . . Highest Corruption . | . . . Average Corruption . | . . . Corruption Purged . | . . . Corruption Blocked . | . . . Overload Shots . | . . . Overflow Damage . | . . . Projectiles . | . . . Explosions . | . . . Melee . | . . . Knockbacks 6 | . 1 5 Impact . | . . . Kinetic 6 | . 1 5 Secondary . | . . . Self-Inflicted Damage . | . . . Shots . | . . . Rammed . | . . . Targets Rammed . | . . . Kicked . | . . . Crushed . | . . . Highest Temperature 267 | . 76 267 Average Temperature 37 | . 29 44 Received Heat Transfer 591 | . 159 432 Effects 1 | . . 1 Energy Bleed 1 | . . 1 Siege Activations . | . . . Martial Activations . | . . . Shielding Activations . | . . . Robots Disrupted . | . . . Combat Hostiles . | . . . Robots Corrupted . | . . . Combat Hostiles . | . . . Parts Fried . | . . . Impact Corruptions . | . . . Robots Melted . | . . . Combat Hostiles . | . . . Parts Melted 1 | . . 1 Heat Transferred 871 | . 575 296 Parts Sabotaged . | . . . Parts Stolen . | . . . Parts Stripped . | . . . Power Chain Reactions . | . . . Alert | -11 -10 -9 ------- Run | Yrd Mat Mat Maximum Alert Level . | . . . Low Security (%) 100 | 100 100 100 Level 1 . | . . . Level 2 . | . . . Level 3 . | . . . Level 4 . | . . . Level 5 . | . . . High Security . | . . . Max Security . | . . . Peak Influence 121 | . 60 121 Initial . | . . . Average 18 | . 17 27 Influence Increases 650 | . 349 301 Destroy 0b10 Robot/C 480 | . 260 220 Destroy 0b10 Robot/NC 50 | . 25 25 Destroy Leader 116 | . 64 52 Destroy Structure 4 | . . 4 Influence Decreases 529 | . 346 183 Entered New Map 3 | . . 3 Time Decay 430 | . 310 120 Lost Part 96 | . 36 60 Squads Dispatched 5 | . 3 2 Investigation 2 | . 2 . Extermination . | . . . Reinforcement 3 | . 1 2 Assault . | . . . Garrison . | . . . Intercept . | . . . Searches Triggered . | . . . Construction Impeded . | . . . Haulers Reinforced . | . . . Active Scanning Responses . | . . . Cargo Convoy Interrupts . | . . . Stealth | -11 -10 -9 --------- Run | Yrd Mat Mat Distress Signals 5 | . 1 4 Communications Jammed . | . . . Distress Signals . | . . . Times Spotted 37 | . 21 16 Peak Tracking Total 7 | . 4 7 Tactical Retreats . | . . . Traps | -11 -10 -9 ------- Run | Yrd Mat Mat Traps Triggered 3 | . 3 . Indirectly . | . . . Trap Hack Attempts . | . . . Triggered . | . . . Disarmed . | . . . Reprogrammed . | . . . Reused . | . . . Traps Extracted . | . . . Installed . | . . . Triggered . | . . . Machines | -11 -10 -9 ---------- Run | Yrd Mat Mat Machines Disabled . | . . . Max in Single Turn . | . . . Machines Repaired . | . . . Machines Dismantled . | . . . Machines Sabotaged . | . . . Overloaded Fab Kills . | . . . Hacking | -11 -10 -9 --------- Run | Yrd Mat Mat Machines Accessed . | . . . Terminals . | . . . Fabricators . | . . . Repair Stations . | . . . Recycling Units . | . . . Scanalyzers . | . . . Garrison Access . | . . . Total Hacks . | . . . Successful . | . . . Failed . | . . . Catastrophic . | . . . Database Lockouts . | . . . Manual . | . . . Terminals . | . . . Fabricators . | . . . Repair Stations . | . . . Recycling Units . | . . . Scanalyzers . | . . . Garrison Access . | . . . Terminal Hacks . | . . . Fabricator Hacks . | . . . Repair Station Hacks . | . . . Recycling Unit Hacks . | . . . Scanalyzer . | . . . Garrison Access Hacks . | . . . Unauthorized Hacks . | . . . Terminals . | . . . Fabricators . | . . . Repair Stations . | . . . Recycling Units . | . . . Scanalyzers . | . . . Garrison Access . | . . . Data Cores Recovered . | . . . Used . | . . . Hacking Detections . | . . . Full Trace Events . | . . . Feedback Events . | . . . Feedback Blocked . | . . . Robot Schematics Acquired . | . . . Robots Built . | . . . Authchips . | . . . Time . | . . . Total Robot Build Rating . | . . . Part Schematics Acquired . | . . . Parts Built . | . . . Authchips . | . . . Time . | . . . Total Part Build Rating . | . . . Part Studies Acquired . | . . . Parts Repaired . | . . . Time . | . . . Parts Recycled . | . . . Recycled Matter . | . . . Retrieved Matter . | . . . Retrieved Components . | . . . Parts Scanalyzed . | . . . Part Schematics Acquired . | . . . Parts Damaged . | . . . Bothacking | -11 -10 -9 ------------ Run | Yrd Mat Mat Used RIF Installer . | . . . Robots Hacked . | . . . Non-combat . | . . . Combat . | . . . Robot Hacks Applied . | . . . Relay Couplers Released . | . . . Fabnet Peak Effective % . | . . . Robots Rewired . | . . . Allies Hacked . | . . . Hacks Repelled . | . . . Allies | -11 -10 -9 -------- Run | Yrd Mat Mat Total Allies . | . . . Largest Group . | . . . Highest-Rated Group . | . . . Highest-Rated Ally . | . . . Total Orders . | . . . Ally Attacks . | . . . Total Damage . | . . . Kills . | . . . Allies Corrupted . | . . . Allies Melted . | . . . Intel | -11 -10 -9 ------- Run | Yrd Mat Mat Active Infowar (turns) . | . . . Robot Analysis Total . | . . . Derelict Logs Recovered . | . . . Drone Launches . | . . . Drone Recoveries . | . . . Exploration | -11 -10 -9 ------------- Run | Yrd Mat Mat Turns Passed 1674 | 59 1279 336 Spaces Moved 1233 | 56 1056 121 Core 12 | 5 . 7 Treads . | . . . Legs . | . . . Wheels 1221 | 51 1056 114 Hover . | . . . Flight . | . . . Fastest Speed 50 | 50 80 105 Average Speed 106 | 77 102 155 Slowest Speed 950 | 80 115 950 Overloaded Moves . | . . . Propulsion Burnouts . | . . . Robots Hopped . | . . . Potential Cave-ins . | . . . Cave-ins Triggered . | . . . Exploration Rate (%) 40 | 4 99 18 Regions Visited 2 Branch Regions . Pre-discovered Areas . | . . . Known Exits Taken . | . . . Unknown Exits Taken 2 | 1 1 . Scrap Searched . | . . . Spaces Dug . | . . . Terrain Destroyed 4 | . . 4 Melee . | . . . Projectile 4 | . . 4 AOE . | . . . Terrain Rammed . | . . . Walls Destroyed . | . . . Machines Disabled . | . . . Actions | -11 -10 -9 --------- Run | Yrd Mat Mat Total 1424 | 70 1161 193 Wait 32 | . 28 4 Move 1231 | 55 1055 121 Hop . | . . . Pick Up 37 | 9 22 6 Fast Attach 1 | 1 . . Attach 22 | 5 6 11 Detach . | . . . Swap 2 | . 2 . Drop 5 | . 1 4 Fire 94 | . 47 47 Melee . | . . . Ram . | . . . Kick . | . . . Crush . | . . . Escape Stasis . | . . . Rewire . | . . . Trap . | . . . Miscellaneous . | . . . Route ------- -11/Scrapyard -10/Materials (discovered 5 exits: [*Mat x3] / [*Min] / [*Sub]) -9/Materials History --------- Turn | Location | Event 9 | -11/Scrapyard | Discovered new exit (range 15) 60 | -11/Scrapyard | Entered Materials 164 | -10/Materials | Discovered new exit (range 12) 312 | -10/Materials | Build established: Mutant 546 | -10/Materials | Discovered new exit (range 5) 586 | -10/Materials | Discovered new exit (range 13) 785 | -10/Materials | Discovered new exit (range 16) 819 | -10/Materials | Core integrity fell below 50% 846 | -10/Materials | Lost 3 parts (1n2w) 1027 | -10/Materials | Discovered new exit (range 9) 1339 | -10/Materials | Entered another Materials area 1339 | -9/Materials | Evolved 2 slots: Utility x2 1457 | -9/Materials | Lost 3 parts (2p1n) 1555 | -9/Materials | Core integrity fell below 50% 1603 | -9/Materials | Lost 7 parts (1p2n1u3w) 1649 | -9/Materials | Core integrity fell below 20% 1675 | -9/Materials | Destroyed by G-34 Mercenary with Small Laser Last Messages --------------- R-06 Scavenger destroyed. K-01 Serf collects debris. U-05 Engineer builds a Wall. K-01 Serf collects debris. Lgt. Ion Engine destroyed. K-01 Serf collects debris. K-01 Serf destroyed. Imp. Light Cannon destroyed. Acquired Com. Wheel. Visual Processing Unit melted. W-16 Scout destroyed. G-34 Mercenary destroyed. U-05 Engineer builds a Wall. R-06 Scavenger collects Med. Matter Pod. G-34 Mercenary destroyed. R-06 Scavenger destroyed. Overheating: Energy bleed (-22). K-01 Serf collects debris. U-05 Engineer destroyed. G-34 Mercenary destroyed. Map ----- +----------------------------------------------------+ | ???????????????????????????????????????????????? | | ???????????????????????????????????????????????? | | ???????????????????????????????????????????????? | | ???????????????????????????????????????????????? | | ???????????????????????????????????????????????? | | ???????????????????????????????????????????????? | | ???????????????????????????????????????????????? | | ???????????????????????????????????????????????? | | ???????????????????????????????????????????????? | | ???????????????????????????????????????????????? | | ???????????????????????????????????????????????? | | ???????????????????????????????????????????????? | | ???????###?????????????????????????????????????? | | ??????##!!!!???????????????????????????????????? | | ??????#! ???????????????????????????????????? | | ??????# ??????????????????????????????????? | | ?????## ##############????????????????????? | | ?????# #????????????????????? | | ?????# ^ [! #????????????????????? | | ???????## """ k* %#????????????????????? | | ????????# """"" ####==[#????????????????????? | | ????????# """"" #??#*%=#????????????????????? | | ????????# """ #??#%[%#????????????????????? | | ????????# #??#=!!##########???????????? | | ????????# #??#%**%*|!*%= ????? | | ????????+ ! #??#@%=%*==%! % % ????? | | ????????# #??#%= ==%!u g ????? | | ????????# ##### ##?## = !=!= ?????? | | ????????# ????# #??## % u! ?????? | | ????????# ????# #???# [%###############??????? | | ????????# #####+##??# %a###??????????????????? | | ????????# # "" #??# #????????????????????? | | ????????# # ""S #??# #????????????????????? | | ????????# # "" #??# #????????????????????? | | ????????# # #??# +????????????????????? | | ????????# # #??# #????????????????????? | | ????????# # #??# #????????????????????? | | ????????# ###+####### ##???????????????????? | | ????????# ! ??????????????? | | ????????# = ??????????????? | | ????????# ??????????????? | | ????????# ############+###### ???????????????? | | ????????# # #??????????????????????????? | | ????????# # """ ""#??????????????????????????? | | ????????# # """ Y"#??????????????????????????? | | ????????# # """ ""#??????????????????????????? | | ????????# # #??????????????????????????? | | ????????# # """ #??????????????????????????? | | ????????# + """ #??????????????????????????? | | ######### # """ #??????????????????????????? | +----------------------------------------------------+ Best States ------------- Heat Dissipation 38 Energy Generation 14 Energy Capacity 250 Matter Stores 300 Matter Capacity 300 Sight Range 16 Terrain Scan Density 10 Weapon Shielding 33 Evasion (%) 44 Item Schematics ----------------- None Robot Schematics ------------------ None Fabricated ------------ Nothing Repaired ---------- Nothing Studied --------- None Alien Tech Used ----------------- None Achievements -------------- None Challenges ------------ None Game ------ Seed ThiefGaussProjector Manual? 0 Play Time 00:16:31 Cumulative 12.5 hours Start 2025.12.21 @ 18:14:55 End 2025.12.23 @ 15:58:25 Sessions 2 Manual Loads 0 Difficulty Rogue Special Mode None Game No. 36 Rogue 35 Adventurer 0 Explorer 1 Win Type - Total 0 Types 0/0/0/0/0/0/0/0/0/0 Lore% 8 Gallery% 14 Achievement% 12 Wizard Run 0 Options --------- Layout 1 ASCII 0 Keyboard 0 Movement Mouse Keybinds 0 Fullscreen 2 Font 24/Smallcaps Map View 50x35 Zoom Use 7% Tactical HUD 0 Map Filters NONE Filters NONE Steam 1 RUN: 266695d4-45f6-4f5e-8b2e-df73715dbc2a